bitfinex-derivatives/quotes_BTCF0:USTF0_20250528
["timestamp","ask_amount","ask_price","bid_price","bid_amount"]
[1748440708346,1.32498895,108140.0,108130.0,0.00289]
[1748440709042,1.32498895,108140.0,108130.0,0.1877655]
[1748440709248,0.71574895,108140.0,108130.0,0.1877655]
[1748440709640,1.15264665,108140.0,108130.0,0.1877655]
[1748440710443,0.67504665,108140.0,108130.0,0.1877655]
[1748440710748,1.15236665,108140.0,108130.0,0.1877655]
[1748440711940,1.15236665,108140.0,108130.0,0.00277]
[1748440712248,1.15236665,108140.0,108130.0,0.00289]
[1748440713058,1.14936665,108140.0,108130.0,0.00289]
[1748440713250,1.15036665,108140.0,108130.0,0.00289]
[1748440713550,1.19110921,108140.0,108130.0,0.00289]
[1748440713950,0.0462241,108120.0,108090.0,0.1577654]
[1748440714152,0.5457268,108100.0,108090.0,0.2773936]
[1748440714650,0.6108268,108100.0,108090.0,0.2775136]
[1748440714852,0.6108268,108100.0,108090.0,0.2311607]
[1748440715049,0.6108268,108100.0,108090.0,0.2312807]
[1748440715348,0.1849439,108090.0,108080.0,0.3982298]
[1748440715547,0.6071439,108090.0,108080.0,0.3982298]
[1748440715855,0.84477563,108110.0,108100.0,0.1849268]
[1748440716042,1.32105563,108110.0,108100.0,0.1849268]
[1748440717053,0.71265563,108110.0,108100.0,0.1879268]
[1748440717251,0.71378903,108110.0,108100.0,0.3114268]
[1748440717447,1.14390853,108110.0,108100.0,0.3134268]
[1748440717643,0.12183883,108110.0,108100.0,1.8134268]
[1748440717851,0.00013883,108110.0,108100.0,2.1742268]
[1748440718047,0.00013883,108110.0,108100.0,2.2378268]
[1748440718350,0.00013883,108110.0,108100.0,2.8450668]
[1748440718652,0.059,108130.0,108120.0,0.1848926]
[1748440718840,0.3092755,108130.0,108120.0,0.5456926]
[1748440719045,0.1244,108130.0,108120.0,0.6727926]
[1748440719246,0.3092755,108130.0,108120.0,0.6727926]
[1748440719959,0.0664,108130.0,108120.0,0.6727926]
[1748440720158,0.0664,108130.0,108120.0,0.3119926]
[1748440720159,0.6120755,108130.0,108120.0,0.3119926]
[1748440720454,0.3102755,108130.0,108120.0,0.3119926]
[1748440720752,0.1254,108130.0,108120.0,0.3119926]
[1748440721253,0.3102755,108130.0,108120.0,0.6737926]
[1748440721452,0.1254,108130.0,108120.0,0.3129926]
[1748440722058,0.1254,108130.0,108120.0,0.6737926]
[1748440722253,0.1254,108130.0,108120.0,0.3129926]
[1748440722465,0.3092755,108130.0,108120.0,0.3129926]
[1748440722647,0.27823118,108140.0,108130.0,0.1848755]
[1748440722848,0.40163118,108140.0,108130.0,0.3087755]
[1748440723044,0.12432718,108140.0,108130.0,0.3087755]
[1748440723249,0.30918558,108140.0,108130.0,1.8087755]
[1748440723450,0.30918558,108140.0,108130.0,2.1695755]
[1748440723849,0.31018558,108140.0,108130.0,2.1695755]
[1748440724149,0.31118558,108140.0,108130.0,2.1695755]
[1748440724343,0.31118558,108140.0,108130.0,1.5]
[1748440724550,0.67198558,108140.0,108130.0,1.6848755]
[1748440724947,0.67198558,108140.0,108130.0,0.1849955]
[1748440725859,0.81063748,108140.0,108130.0,0.1848755]
[1748440726057,0.1848926,108120.0,108110.0,0.40408673]
[1748440726363,0.5456926,108120.0,108110.0,0.23125963]
[1748440726556,0.6690926,108120.0,108110.0,0.23137963]
[1748440727356,0.8000126,108120.0,108110.0,0.18716853]
[1748440727658,1.1608126,108120.0,108110.0,0.00425883]
[1748440727857,1.1608126,108120.0,108110.0,0.00413883]
[1748440728173,1.24228681,108120.0,108110.0,0.00413883]
[1748440728360,2.29096681,108120.0,108110.0,0.00413883]
[1748440728554,2.40346281,108120.0,108110.0,0.00413883]
[1748440728750,0.1849439,108090.0,108080.0,0.38703227]
[1748440729057,0.6729039,108090.0,108080.0,0.44983227]
[1748440729559,0.6729039,108090.0,108080.0,0.00036207]
[1748440729754,0.7326039,108090.0,108080.0,0.00048207]
[1748440729955,0.7326039,108090.0,108080.0,0.00536207]
[1748440730155,0.7326039,108090.0,108080.0,0.00548207]
[1748440730346,0.7326039,108090.0,108080.0,0.01048207]
[1748440730551,0.7326039,108090.0,108080.0,0.01036207]
[1748440730765,0.7336039,108090.0,108080.0,0.00548207]
[1748440730958,0.7336039,108090.0,108080.0,0.00536207]
[1748440731158,0.7336039,108090.0,108080.0,0.00548207]
[1748440731848,0.8557039,108090.0,108080.0,0.00548207]
[1748440732450,0.8577039,108090.0,108080.0,0.00048207]
[1748440733867,0.8577039,108090.0,108080.0,0.00036207]
[1748440734163,0.9502239,108090.0,108080.0,0.00048207]
[1748440734363,0.9902239,108090.0,108080.0,0.00036207]
[1748440734559,1.03088331,108090.0,108080.0,0.00048207]
[1748440734763,1.03086808,108090.0,108080.0,0.00048207]
[1748440735151,0.9502239,108090.0,108080.0,0.00048207]
[1748440735454,0.1849612,108080.0,108070.0,0.00288883]
[1748440735684,0.1849612,108080.0,108040.0,0.5094896]
[1748440735685,0.1850126,108050.0,108040.0,0.5094896]
[1748440735864,0.5458126,108050.0,108040.0,1.9441896]
[1748440736055,1.2417546,108060.0,108050.0,0.1850126]
[1748440736261,1.3637546,108060.0,108050.0,0.2505126]
[1748440736760,0.7949553,108060.0,108050.0,0.2505126]
[1748440737361,0.7949553,108060.0,108050.0,0.2535126]
[1748440737567,0.00013883,108070.0,108060.0,0.1849953]
[1748440737762,0.84943693,108070.0,108060.0,0.2504953]
[1748440738261,1.21023693,108070.0,108060.0,0.2504953]
[1748440738469,1.27143693,108070.0,108060.0,0.2504953]
[1748440739155,0.67311693,108070.0,108060.0,0.2544953]
[1748440739566,0.73451693,108070.0,108060.0,0.2544953]
[1748440739758,0.79501693,108070.0,108060.0,0.2544953]
[1748440740159,0.79501693,108070.0,108060.0,0.004]
[1748440740360,0.79501693,108070.0,108060.0,0.1889952]
[1748440740676,0.79501693,108070.0,108060.0,0.00412]
[1748440740968,0.79501693,108070.0,108060.0,0.004]
[1748440741180,0.79501693,108070.0,108060.0,0.00412]
[1748440743264,0.82501693,108070.0,108060.0,0.00412]
[1748440743468,0.82501693,108070.0,108060.0,0.004]
[1748440743766,0.82501693,108070.0,108060.0,0.00412]
[1748440743968,0.69781693,108070.0,108060.0,0.1891152]
[1748440744161,0.12203883,108070.0,108060.0,0.1891152]
[1748440744363,0.00013883,108070.0,108060.0,0.6154152]
[1748440744861,0.00013883,108070.0,108060.0,2.1154152]
[1748440745065,0.00013883,108070.0,108060.0,2.4579512]
[1748440745972,0.00013883,108070.0,108060.0,2.1154152]
[1748440746160,0.00013883,108070.0,108060.0,2.4579512]
[1748440747160,0.00013883,108070.0,108060.0,2.2079512]
[1748440748468,0.18511703,108070.0,108060.0,1.7546152]
[1748440748665,0.54591703,108070.0,108060.0,1.82489521]
[1748440748861,1.14871703,108070.0,108060.0,0.2544952]
[1748440749069,1.14871703,108070.0,108060.0,0.2546152]
[1748440751677,0.72653703,108070.0,108060.0,0.3186152]
[1748440752368,1.15073703,108070.0,108060.0,0.3186153]
[1748440752768,1.15073703,108070.0,108060.0,0.1891153]
[1748440752965,1.15073703,108070.0,108060.0,0.004]
[1748440753266,1.21013703,108070.0,108060.0,0.00412]
[1748440753468,1.21013703,108070.0,108060.0,0.004]
[1748440753667,1.22013703,108070.0,108060.0,0.00412]
[1748440754573,0.68461703,108070.0,108060.0,0.00412]
[1748440754772,1.27789703,108070.0,108060.0,0.1891153]
[1748440754973,1.3187947,108070.0,108060.0,0.1891153]
[1748440755470,1.3187947,108070.0,108060.0,0.2543153]
[1748440755981,1.3197947,108070.0,108060.0,0.2523153]
[1748440756170,0.7175147,108070.0,108060.0,0.2503153]
[1748440756367,1.3207947,108070.0,108060.0,0.3139153]
[1748440757291,0.5325365,108070.0,108060.0,0.3139153]
[1748440757574,1.3205149,108070.0,108060.0,0.38419531]
[1748440757776,1.1355365,108070.0,108060.0,0.38419531]
[1748440757964,1.3205147,108070.0,108060.0,0.38419531]
[1748440758166,0.4691365,108070.0,108060.0,0.38419531]
[1748440758369,0.1083365,108070.0,108060.0,0.6747153]
[1748440758673,0.0430365,108070.0,108060.0,0.6747153]
[1748440758975,0.0430365,108070.0,108060.0,0.7245254]
[1748440759174,0.0430365,108070.0,108060.0,0.8060511]
[1748440759375,0.06448888,108100.0,108090.0,0.1849439]
[1748440759681,0.72529838,108110.0,108100.0,0.1849268]
[1748440759976,0.72529838,108110.0,108100.0,0.38043149]
[1748440760279,0.06548868,108110.0,108100.0,0.38043149]
[1748440760470,0.25039838,108110.0,108100.0,0.38043149]
[1748440760676,0.06548868,108110.0,108100.0,0.38043149]
[1748440760973,0.18629838,108110.0,108100.0,0.38043149]
[1748440761475,0.18729838,108110.0,108100.0,0.74123149]
[1748440761867,0.18729838,108110.0,108100.0,0.6707268]
[1748440762262,0.18829838,108110.0,108100.0,0.6707268]
[1748440762468,0.00338868,108110.0,108100.0,0.7305268]
[1748440762683,0.18829838,108110.0,108100.0,0.7305268]
[1748440762978,0.54909838,108110.0,108100.0,0.3697268]
[1748440763275,0.67129838,108110.0,108100.0,0.3697268]
[1748440763483,0.67129838,108110.0,108100.0,0.3698468]
[1748440763865,0.67129838,108110.0,108100.0,0.3100468]
[1748440764065,0.67129838,108110.0,108100.0,0.00012]
[1748440764282,0.67129838,108110.0,108090.0,2.02057232]
[1748440764283,0.1849268,108100.0,108090.0,2.02057232]
[1748440764477,0.6713268,108100.0,108090.0,2.02057232]
[1748440764683,0.6713268,108100.0,108090.0,1.97433922]
[1748440764870,0.6713268,108100.0,108090.0,1.90383453]
[1748440765071,0.6713268,108100.0,108090.0,0.41053922]
[1748440765383,0.6713268,108100.0,108090.0,0.25557382]
[1748440765777,0.6713268,108100.0,108090.0,0.18506913]
[1748440766385,0.7982468,108100.0,108090.0,0.00013883]
[1748440766573,0.8583468,108100.0,108090.0,0.00013883]
[1748440766883,0.87237808,108100.0,108090.0,0.00013883]
[1748440767181,0.87237808,108100.0,108090.0,0.00025883]
[1748440767679,0.87437808,108100.0,108090.0,0.00025883]
[1748440767879,0.87437808,108100.0,108090.0,0.18520273]
[1748440768271,0.4884,108100.0,108090.0,0.18520273]
[1748440768474,0.1296,108100.0,108090.0,0.31640273]
[1748440768783,0.1296,108100.0,108090.0,0.37590273]
[1748440769092,0.1296,108100.0,108090.0,0.73670273]
[1748440769582,0.1276,108100.0,108090.0,0.73670273]
[1748440769884,0.002,108100.0,108090.0,0.73670273]
[1748440770180,0.12138868,108110.0,108100.0,0.1849268]
[1748440770391,0.12138868,108110.0,108100.0,0.6742268]
[1748440770691,0.06148868,108110.0,108100.0,0.6742268]
[1748440771479,0.00138868,108110.0,108100.0,0.6742268]
[1748440771871,0.00138868,108110.0,108100.0,0.74473149]
[1748440772481,0.00138868,108110.0,108100.0,0.83723549]
[1748440772878,0.00013883,108120.0,108110.0,0.1849097]
[1748440773189,0.00013883,108120.0,108110.0,0.6730097]
[1748440773380,0.36093883,108120.0,108110.0,0.3122097]
[1748440773578,0.05953883,108120.0,108110.0,0.3122097]
[1748440773882,0.30403143,108120.0,108110.0,0.3122097]
[1748440774186,0.30403143,108120.0,108110.0,0.2483097]
[1748440774187,0.66483143,108120.0,108110.0,0.2483097]
[1748440774371,0.1849097,108110.0,108100.0,0.25943149]
[1748440774578,0.6647097,108110.0,108100.0,0.1869268]
[1748440774886,0.6647097,108110.0,108100.0,0.3122268]
[1748440775483,0.6647097,108110.0,108100.0,0.3142268]
[1748440775684,0.6647097,108110.0,108100.0,0.00212]
[1748440775877,0.6647097,108110.0,108100.0,0.002]
[1748440776074,0.6647097,108110.0,108100.0,0.00212]
[1748440776275,0.7047097,108110.0,108100.0,0.002]
[1748440776486,0.7047097,108110.0,108100.0,0.004]
[1748440776688,0.7047097,108110.0,108100.0,0.00412]
[1748440779479,0.1849268,108100.0,108090.0,0.00013883]
[1748440779683,1.2766068,108100.0,108090.0,0.00013883]
[1748440780082,1.2766068,108100.0,108090.0,0.18520273]
[1748440780083,0.52933236,108100.0,108090.0,0.18520273]
[1748440780392,0.1286,108100.0,108090.0,0.25080273]
[1748440780686,0.1286,108100.0,108090.0,0.39180742]
[1748440780891,0.1286,108100.0,108090.0,0.75260742]
[1748440781085,0.1286,108100.0,108090.0,0.81390742]
[1748440781685,0.6743268,108100.0,108090.0,0.45310742]
[1748440781884,0.3135268,108100.0,108090.0,0.45298742]
[1748440782102,0.1286,108100.0,108090.0,0.45310742]
[1748440782295,0.3135268,108100.0,108090.0,0.45310742]
[1748440782496,0.1286,108100.0,108090.0,0.38260273]
[1748440782683,0.1286,108100.0,108090.0,0.45310742]
[1748440782992,0.3135268,108100.0,108090.0,0.38260273]
[1748440783190,0.3135268,108100.0,108090.0,0.45310742]
[1748440783391,0.6743268,108100.0,108090.0,0.45310742]
[1748440783596,1.29008968,108100.0,108090.0,0.00625883]
[1748440783781,1.29008968,108100.0,108090.0,0.19108273]
[1748440783988,1.29008968,108100.0,108090.0,0.00613883]
[1748440784183,1.29008968,108100.0,108090.0,0.19120273]
[1748440784393,1.29008968,108100.0,108090.0,0.00613883]
[1748440784695,1.29008968,108100.0,108090.0,0.00025883]
[1748440784893,1.31808968,108100.0,108090.0,0.00125883]
[1748440785298,1.44653117,108100.0,108090.0,0.00013883]
[1748440785498,0.184961,108080.0,108070.0,0.0703827]
[1748440785682,0.184961,108080.0,108070.0,0.2553597]
[1748440785683,1.508721,108080.0,108070.0,0.2553597]
[1748440786000,1.508721,108080.0,108070.0,0.2554797]
[1748440786194,1.566921,108080.0,108070.0,0.0705027]
[1748440786995,1.566921,108080.0,108070.0,0.0703827]
[1748440787292,0.1849782,108070.0,108060.0,0.30176533]
[1748440787497,0.6007782,108070.0,108060.0,0.25551663]
[1748440788217,0.6007782,108070.0,108060.0,0.18513393]
[1748440788492,1.2024582,108070.0,108060.0,0.18613393]
[1748440788698,1.2621582,108070.0,108060.0,0.18613393]
[1748440788893,0.4261582,108070.0,108060.0,0.29953393]
[1748440789195,0.2996782,108070.0,108060.0,0.36991663]
[1748440789398,0.2996782,108070.0,108060.0,0.36995663]
[1748440789399,1.2621182,108070.0,108060.0,0.36995663]
[1748440789598,0.6604782,108070.0,108060.0,0.37095663]
[1748440789798,0.7869582,108070.0,108060.0,0.37095663]
[1748440790396,0.24118,108070.0,108060.0,0.37095663]
[1748440790600,0.3114482,108080.0,108070.0,0.1849782]
[1748440790798,0.4293482,108080.0,108070.0,0.6584782]
[1748440791298,0.3028682,108080.0,108070.0,0.6584782]
[1748440791503,0.3028682,108080.0,108070.0,0.2976782]
[1748440792091,0.3038682,108080.0,108070.0,0.2976782]
[1748440793493,0.3038682,108080.0,108070.0,0.3569782]
[1748440794306,0.3038682,108080.0,108070.0,0.7177782]
[1748440794307,0.2441682,108080.0,108070.0,0.7177782]
[1748440794603,0.1859682,108080.0,108070.0,0.7177782]
[1748440796999,0.001,108080.0,108070.0,0.7177782]
[1748440798599,0.05813883,108090.0,108080.0,0.184961]
[1748440798807,0.24308273,108090.0,108080.0,0.660261]
[1748440799008,0.00013883,108090.0,108080.0,0.660261]
[1748440799704,0.18508273,108090.0,108080.0,0.299461]
[1748440799899,0.60368273,108090.0,108080.0,0.392101]
[1748440800100,0.66338273,108090.0,108080.0,0.299581]
[1748440800305,0.66438273,108090.0,108080.0,0.00012]
[1748440800511,0.84933843,108090.0,108080.0,0.1849611]
[1748440800699,1.31190013,108090.0,108080.0,0.1849611]
[1748440801001,0.83710013,108090.0,108080.0,0.2978611]
[1748440801207,0.83710013,108090.0,108080.0,0.1850811]
[1748440801407,0.83710013,108090.0,108080.0,0.1849611]
[1748440801806,0.24511883,108090.0,108080.0,0.07056763]
[1748440802106,0.79086233,108090.0,108080.0,0.25552873]
[1748440802312,0.79086233,108090.0,108080.0,0.00012]
[1748440802502,1.05086233,108090.0,108080.0,0.07056763]
[1748440802699,0.1849777,108070.0,108060.0,0.04992651]
[1748440802911,1.1469777,108070.0,108060.0,0.04992651]
[1748440803107,1.2049777,108070.0,108060.0,0.04992651]
[1748440803300,0.4188,108070.0,108060.0,0.23504141]
[1748440803501,0.058,108070.0,108060.0,0.34702141]
[1748440803703,0.67236233,108090.0,108080.0,0.1849606]
[1748440803913,1.50784233,108090.0,108080.0,0.1849606]
[1748440804121,0.1849606,108080.0,108070.0,0.1826022]
[1748440804321,0.1849777,108070.0,108060.0,0.28615541]
[1748440804606,1.1469377,108070.0,108060.0,0.28615541]
[1748440804806,0.3608,108070.0,108060.0,0.28615541]
[1748440805014,0.53264,108070.0,108060.0,0.39625541]
[1748440805208,0.53264,108070.0,108060.0,0.39637541]
[1748440805800,0.6031606,108080.0,108070.0,0.1849777]
[1748440806005,1.1364006,108080.0,108070.0,0.2982777]
[1748440806202,1.1364006,108080.0,108070.0,0.31171266]
[1748440806607,0.4768,108080.0,108070.0,0.31171266]
[1748440806812,0.4194,108080.0,108070.0,0.2987777]
[1748440807006,0.0586,108080.0,108070.0,0.6595777]
[1748440807201,0.0586,108080.0,108070.0,0.70941515]
[1748440807202,0.001,108080.0,108070.0,0.70941515]
[1748440807406,0.001,108080.0,108070.0,1.19673515]
[1748440807602,0.001,108080.0,108070.0,1.70378456]
[1748440807903,0.00013883,108090.0,108080.0,0.184961]
[1748440808105,0.00013883,108090.0,108080.0,0.79162457]
[1748440808305,0.00013883,108090.0,108080.0,2.30185771]
[1748440808608,0.00013883,108090.0,108080.0,2.252081]
[1748440809207,0.8073358,108120.0,108110.0,0.1849099]
[1748440809405,0.8632358,108120.0,108110.0,0.1849099]
[1748440809613,0.8632358,108120.0,108110.0,0.2963099]
[1748440809614,0.7707864,108120.0,108110.0,0.2963099]
[1748440809915,0.1114,108120.0,108110.0,0.72755945]
[1748440810115,0.1114,108120.0,108110.0,0.6571099]
[1748440810116,0.0559,108120.0,108110.0,0.6571099]
[1748440810319,0.00013883,108130.0,108120.0,0.1848927]
[1748440810520,0.11233883,108130.0,108120.0,0.2962927]
[1748440810822,0.11233883,108130.0,108120.0,0.36668834]
[1748440811119,0.05603883,108130.0,108120.0,0.72748834]
[1748440811313,3e-08,108130.0,108120.0,0.76747234]
[1748440811505,3e-08,108130.0,108120.0,1.12827234]
[1748440811709,3e-08,108130.0,108120.0,1.12018086]
[1748440811909,3e-08,108130.0,108120.0,1.31819099]
[1748440812218,3e-08,108130.0,108120.0,1.16195357]
[1748440812426,3e-08,108130.0,108120.0,1.27783565]
[1748440812722,3e-08,108130.0,108120.0,1.20222794]
[1748440812905,3e-08,108130.0,108120.0,1.22018086]
[1748440813108,3e-08,108130.0,108120.0,1.30212488]
[1748440813309,3e-08,108130.0,108120.0,1.22018086]
[1748440813510,0.3799311,108170.0,108160.0,0.1848243]
[1748440813722,0.3324255,108170.0,108160.0,0.1848243]
[1748440814109,0.3324255,108170.0,108160.0,0.1875943]
[1748440814422,0.2862209,108170.0,108160.0,0.1875943]
[1748440814806,0.2882209,108170.0,108160.0,0.1875943]
[1748440815307,0.6490209,108170.0,108160.0,0.1875943]
[1748440815512,0.7754609,108170.0,108160.0,0.00277]
[1748440816015,0.7754609,108170.0,108160.0,0.1877141]
[1748440816213,0.7754609,108170.0,108160.0,0.00289]
[1748440816416,0.9934729,108170.0,108160.0,0.00289]
[1748440816610,1.5940329,108170.0,108160.0,0.00289]
[1748440816807,1.6240329,108170.0,108160.0,0.00277]
[1748440817011,0.1848412,108150.0,108140.0,0.092429]
[1748440817217,0.5456412,108150.0,108140.0,0.2310592]
[1748440817413,0.1848583,108140.0,108130.0,0.2310872]
[1748440817613,0.6028583,108140.0,108130.0,0.2310872]
[1748440817916,0.2420583,108140.0,108130.0,0.5920072]
[1748440818118,0.0572,108140.0,108130.0,0.3461072]
[1748440818423,0.2420583,108140.0,108130.0,0.3461072]
[1748440818924,0.6028583,108140.0,108130.0,0.00012]
[1748440819318,0.1848754,108130.0,108120.0,0.32369043]
[1748440819514,0.2451754,108130.0,108120.0,0.32369043]
[1748440819918,0.6059754,108130.0,108120.0,0.44289043]
[1748440820114,0.6059754,108130.0,108120.0,0.39666743]
[1748440820315,0.6059754,108130.0,108120.0,0.00025883]
[1748440820913,0.6059754,108130.0,108120.0,0.00013883]
[1748440821116,0.6059754,108130.0,108120.0,0.18515133]
[1748440821317,0.2451754,108130.0,108120.0,0.18515133]
[1748440822316,0.6059754,108130.0,108120.0,0.00025883]
[1748440822523,0.6059754,108130.0,108120.0,0.18515133]
[1748440822719,0.2451754,108130.0,108120.0,0.18515133]
[1748440822928,0.6059754,108130.0,108120.0,0.18503133]
[1748440823225,0.6059754,108130.0,108120.0,0.18515133]
[1748440824628,0.4211,108130.0,108120.0,0.18515133]
[1748440824928,0.6059754,108130.0,108120.0,0.18515133]
[1748440826726,0.0603,108130.0,108120.0,0.18515133]
[1748440826920,0.2451754,108130.0,108120.0,0.29945133]
[1748440827221,0.0603,108130.0,108120.0,0.29945133]
[1748440827427,0.2451754,108130.0,108120.0,0.66025133]
[1748440827626,0.0603,108130.0,108120.0,0.66025133]
[1748440828026,0.12588,108140.0,108130.0,0.1848754]
[1748440828220,0.3681383,108140.0,108130.0,0.6589754]
[1748440828417,0.1848754,108130.0,108120.0,0.07042282]
[1748440828620,1.0767154,108130.0,108120.0,0.00025883]
[1748440828913,1.0767154,108130.0,108120.0,0.00013883]
[1748440829120,1.0767154,108130.0,108120.0,0.00025883]
[1748440829328,1.0767154,108130.0,108120.0,0.18503133]
[1748440829627,1.0767154,108130.0,108120.0,0.18515133]
[1748440830428,0.6030754,108130.0,108120.0,0.00025883]
[1748440830624,1.2025554,108130.0,108120.0,0.00025883]
[1748440830927,1.5450394,108130.0,108120.0,0.00025883]
[1748440831325,1.5450394,108130.0,108120.0,0.00013883]
[1748440831515,1.6251394,108130.0,108120.0,0.00025883]
[1748440832218,0.0462316,108100.0,108080.0,0.07016399]
[1748440832536,0.184961,108080.0,108070.0,0.41136889]
[1748440832724,0.545761,108080.0,108070.0,0.2821049]
[1748440832931,0.602361,108080.0,108070.0,0.2312149]
[1748440833239,0.602361,108080.0,108070.0,0.2313349]
[1748440833726,0.602361,108080.0,108070.0,0.3480349]
[1748440834133,0.0566,108080.0,108070.0,0.3490349]
[1748440834430,0.05763883,108090.0,108080.0,0.184961]
[1748440834624,0.05763883,108090.0,108080.0,0.301661]
[1748440834827,0.24258263,108090.0,108080.0,0.301661]
[1748440835224,0.29978263,108090.0,108080.0,0.301661]
[1748440839841,0.66058263,108090.0,108080.0,0.301661]
[1748440840132,0.1849609,108080.0,108070.0,0.1989681]
[1748440840335,0.6651609,108080.0,108070.0,0.1989681]
[1748440840522,1.2644009,108080.0,108070.0,0.1989681]
[1748440840928,1.2644009,108080.0,108070.0,0.1988481]
[1748440841132,1.2644009,108080.0,108070.0,0.1989681]
[1748440841331,1.2644009,108080.0,108070.0,0.3165681]
[1748440841530,1.2644009,108080.0,108070.0,0.3164481]
[1748440841735,1.2644009,108080.0,108070.0,0.3165681]
[1748440842025,1.2644009,108080.0,108070.0,0.2009681]
[1748440842430,1.2644009,108080.0,108070.0,0.2019681]
[1748440842732,1.2644009,108080.0,108070.0,0.01699]
[1748440842935,1.2644009,108080.0,108070.0,0.2018481]
[1748440843137,1.2644009,108080.0,108070.0,0.2019681]
[1748440843336,1.2644009,108080.0,108070.0,0.01687]
[1748440843643,1.2644009,108080.0,108070.0,0.2019681]
[1748440844728,1.2644009,108080.0,108070.0,0.01699]
[1748440844930,1.2644009,108080.0,108070.0,0.2019681]
[1748440844931,1.3244009,108080.0,108070.0,0.2019681]
[1748440845133,0.6651609,108080.0,108070.0,0.2019681]
[1748440845337,0.777561,108080.0,108070.0,0.3165681]
[1748440845640,1.138361,108080.0,108070.0,0.3165681]
[1748440846138,0.3608,108080.0,108070.0,0.3165681]
[1748440846339,1.35418773,108090.0,108080.0,0.184961]
[1748440846637,0.06003883,108090.0,108080.0,0.300661]
[1748440846943,0.06003883,108090.0,108080.0,0.359861]
[1748440847129,0.00013883,108090.0,108080.0,0.359861]
[1748440847334,0.18508273,108090.0,108080.0,0.359861]
[1748440848340,0.184961,108080.0,108070.0,0.01387]
[1748440848539,0.662861,108080.0,108070.0,0.2550481]
[1748440849037,1.261221,108080.0,108070.0,0.1988481]
[1748440849243,1.261221,108080.0,108070.0,0.1989681]
[1748440849436,1.261221,108080.0,108070.0,0.3119481]
[1748440849633,1.261221,108080.0,108070.0,0.3120681]
[1748440849838,1.261221,108080.0,108070.0,0.3130681]
[1748440850040,1.261221,108080.0,108070.0,0.3150681]
[1748440850935,1.261221,108080.0,108070.0,0.01699]
[1748440851330,1.261221,108080.0,108070.0,0.01687]
[1748440851641,1.261221,108080.0,108070.0,0.2019681]
[1748440852336,1.261221,108080.0,108070.0,0.01699]
[1748440852644,0.1849781,108070.0,108060.0,0.04988651]
[1748440852845,1.0765781,108070.0,108060.0,0.04988651]
[1748440853139,1.0765781,108070.0,108060.0,0.05000651]
[1748440853140,1.1691141,108070.0,108060.0,0.05000651]
[1748440853934,1.1691141,108070.0,108060.0,0.05600651]
[1748440854739,1.4491141,108070.0,108060.0,0.05600651]
[1748440855042,1.4491141,108070.0,108060.0,0.05588651]
[1748440855337,1.4491141,108070.0,108060.0,0.05600651]
[1748440855545,1.4191141,108070.0,108060.0,0.05600651]
[1748440856040,1.4754141,108070.0,108060.0,0.05600651]
[1748440856431,1.5153953,108070.0,108060.0,0.05600651]
[1748440856631,1.4754141,108070.0,108060.0,0.05600651]
[1748440856830,1.51539351,108070.0,108060.0,0.05600651]
[1748440858442,1.55787955,108070.0,108060.0,0.05588651]
[1748440858646,1.55787955,108070.0,108060.0,0.05600651]
[1748440858845,0.1849952,108060.0,108050.0,0.01388]
[1748440859030,1.51348877,108060.0,108050.0,0.01388]
[1748440859337,1.60603277,108060.0,108050.0,0.01388]
[1748440859740,0.91536877,108060.0,108050.0,0.1988923]
[1748440859945,0.70536877,108060.0,108050.0,0.01388]
[1748440860140,0.6653952,108060.0,108050.0,0.1998923]
[1748440860345,0.6053952,108060.0,108050.0,0.3174923]
[1748440860732,0.6653952,108060.0,108050.0,0.3174923]
[1748440861346,0.6053952,108060.0,108050.0,0.3174923]
[1748440861746,0.6637952,108060.0,108050.0,0.3174923]
[1748440862046,1.0245952,108060.0,108050.0,0.01588]
[1748440862236,1.1645952,108060.0,108050.0,0.01588]
[1748440862542,1.2213952,108060.0,108050.0,0.016]
[1748440862741,1.2213952,108060.0,108010.0,1.56994215]
[1748440862742,0.0462602,108040.0,108010.0,1.16287425]
[1748440862945,0.5458637,108020.0,108010.0,1.40710574]
[1748440863135,0.5458637,108020.0,108010.0,1.11208425]
[1748440863336,0.6628637,108020.0,108010.0,1.29716505]
[1748440863633,0.6628637,108020.0,108010.0,1.23486089]
[1748440864030,0.6628637,108020.0,108010.0,1.23686089]
[1748440864236,0.6628637,108020.0,108010.0,1.25187006]
[1748440864443,0.6628637,108020.0,108010.0,1.25187283]
[1748440864638,0.6628637,108020.0,108010.0,1.23886099]
[1748440864941,1.1355437,108020.0,108010.0,1.1892009]
[1748440865140,1.1355437,108020.0,108010.0,1.01708438]
[1748440865141,1.14929999,108020.0,108010.0,1.01708438]
[1748440865440,1.14929999,108020.0,108010.0,1.01707182]
[1748440865637,0.67661999,108020.0,108010.0,1.00212]
[1748440865838,1.14925999,108020.0,108010.0,1.005]
[1748440866047,1.14925999,108020.0,108010.0,1.20307083]
[1748440866350,0.67661999,108020.0,108010.0,1.20319083]
[1748440866545,1.14929999,108020.0,108010.0,1.20319083]
[1748440866742,0.67661999,108020.0,108010.0,1.1902009]
[1748440866952,1.14925999,108020.0,108010.0,1.00512]
[1748440867145,0.67661999,108020.0,108010.0,1.00512]
[1748440867452,1.14925999,108020.0,108010.0,1.005]
[1748440867639,1.14925999,108020.0,108010.0,1.00512]
[1748440867841,1.14925999,108020.0,108010.0,1.005]
[1748440868039,1.14925999,108020.0,108010.0,1.1902009]
[1748440868235,1.27457999,108020.0,108010.0,1.1902009]
[1748440868543,1.27457999,108020.0,108010.0,1.3113709]
[1748440869240,0.19771629,108020.0,108010.0,1.6721709]
[1748440869434,0.36093883,108030.0,108010.0,1.6721709]
[1748440869435,0.00013883,108030.0,108020.0,0.1850637]
[1748440869647,0.00013883,108030.0,108020.0,0.7213637]
[1748440870148,0.00138971,108050.0,108040.0,0.1850295]
[1748440870447,0.00138971,108050.0,108040.0,0.6615295]
[1748440870773,0.00138971,108050.0,108040.0,1.3648855]
[1748440871044,0.00013883,108060.0,108050.0,0.1850124]
[1748440871249,0.00013883,108060.0,108050.0,0.5458124]
[1748440871441,0.00138936,108070.0,108060.0,0.1849952]
[1748440871645,0.04380929,108090.0,108080.0,0.184961]
[1748440871846,0.04380929,108090.0,108080.0,0.545761]
[1748440872145,0.18633304,108090.0,108080.0,0.184961]
[1748440872447,0.00138914,108090.0,108080.0,0.545761]
[1748440872644,0.00138914,108090.0,108080.0,0.184961]
[1748440872945,0.00138914,108090.0,108080.0,0.638281]
[1748440873543,0.00138914,108090.0,108080.0,0.277481]
[1748440873849,0.00338914,108090.0,108080.0,0.638281]
[1748440874045,0.00338914,108090.0,108080.0,0.708692]
[1748440874247,0.00338914,108090.0,108080.0,1.431092]
[1748440874451,0.00013883,108100.0,108090.0,0.1849438]
[1748440874652,0.00013883,108100.0,108090.0,0.5457438]
[1748440874840,0.00013883,108100.0,108090.0,0.6985558]
[1748440875036,0.00013883,108100.0,108090.0,0.9485558]
[1748440875352,0.00138866,108130.0,108120.0,0.1848925]